bitfinex/quotes_BTCUSD_20250109
["timestamp","ask_amount","ask_price","bid_price","bid_amount"]
[1736405275813,0.06606018,94438.0,94437.0,0.00014048]
[1736405276021,0.06506018,94438.0,94437.0,0.00014048]
[1736405276230,0.06406018,94438.0,94437.0,0.00014048]
[1736405276399,0.09607423,94440.0,94437.0,0.00014048]
[1736405276566,0.001,94438.0,94437.0,0.00014048]
[1736405277951,0.51862223,94441.0,94437.0,0.00014048]
[1736405279170,0.09507423,94439.0,94437.0,0.00014048]
[1736405282057,0.09607423,94439.0,94437.0,0.00014048]
[1736405282261,0.09707423,94439.0,94437.0,0.00014048]
[1736405282432,0.09507423,94439.0,94437.0,0.00014048]
[1736405282842,0.09807423,94439.0,94437.0,0.00014048]
[1736405283049,0.14261135,94438.0,94437.0,0.00014048]
[1736405284031,0.001,94439.0,94437.0,0.00014048]
[1736405284858,0.211774,94441.0,94437.0,0.00014048]
[1736405285200,0.001,94439.0,94437.0,0.00014048]
[1736405285398,0.001,94438.0,94437.0,0.00014048]
[1736405285855,0.09507434,94439.0,94437.0,0.00014048]
[1736405286059,0.211779,94438.0,94437.0,0.00014048]
[1736405286863,0.212779,94438.0,94437.0,0.00014048]
[1736405288043,0.213779,94438.0,94437.0,0.00014048]
[1736405288251,0.35639035,94438.0,94437.0,0.00014048]
[1736405289135,0.56475217,94438.0,94437.0,0.00014048]
[1736405290389,1.0340437,94438.0,94437.0,0.00014048]
[1736405292764,0.79635169,94438.0,94437.0,0.00014048]
[1736405297581,0.69205193,94438.0,94437.0,0.00014048]
[1736405300711,0.69205193,94438.0,94437.0,0.00010048]
[1736405301624,0.69205193,94438.0,94437.0,0.00014048]
[1736405304560,0.6919472,94438.0,94437.0,0.00014048]
[1736405307031,0.9190472,94438.0,94437.0,0.00014048]
[1736405307233,1.12334696,94438.0,94437.0,0.00014048]
[1736405307767,1.22334696,94438.0,94437.0,0.00014048]
[1736405308621,1.22234696,94438.0,94437.0,0.00014048]
[1736405308824,1.22134696,94438.0,94437.0,0.00014048]
[1736405309021,0.1,94428.0,94407.0,0.1253]
[1736405309245,0.234853,94405.0,94404.0,8.52e-05]
[1736405309454,0.33915276,94405.0,94404.0,8.52e-05]
[1736405310308,0.64497489,94405.0,94404.0,8.52e-05]
[1736405310491,0.65159637,94405.0,94404.0,8.52e-05]
[1736405310692,1.00261961,94405.0,94404.0,8.52e-05]
[1736405310987,1.10691937,94405.0,94404.0,8.52e-05]
[1736405311940,1.10791937,94405.0,94404.0,8.52e-05]
[1736405312243,1.10891937,94405.0,94404.0,8.52e-05]
[1736405312476,1.10691937,94405.0,94404.0,8.52e-05]
[1736405312870,1.11691937,94405.0,94404.0,0.0010852]
[1736405313444,1.01261961,94405.0,94404.0,0.0010852]
[1736405313796,1.11261961,94405.0,94404.0,0.0010852]
[1736405314296,1.11265961,94405.0,94404.0,0.0010852]
[1736405315217,0.86746201,94405.0,94404.0,0.0010852]
[1736405316624,1.10444725,94405.0,94404.0,0.0010852]
[1736405316827,1.20874701,94405.0,94404.0,0.0010852]
[1736405317428,1.10444725,94405.0,94404.0,0.0010852]
[1736405317870,1.05700794,94405.0,94404.0,0.0010852]
[1736405318670,0.90700794,94405.0,94404.0,0.0010852]
[1736405319023,0.46124606,94405.0,94404.0,0.0010852]
[1736405320355,0.45058153,94405.0,94404.0,0.0010852]
[1736405320563,0.35582431,94405.0,94404.0,0.0010852]
[1736405321396,0.35282431,94405.0,94404.0,0.0010852]
[1736405321594,0.34582431,94405.0,94404.0,8.52e-05]
[1736405321870,0.45212407,94405.0,94404.0,8.52e-05]
[1736405321995,0.45812407,94405.0,94404.0,0.0010852]
[1736405322202,0.45212407,94405.0,94404.0,8.52e-05]
[1736405322406,0.45012407,94405.0,94404.0,8.52e-05]
[1736405322613,0.60312407,94405.0,94404.0,8.52e-05]
[1736405322829,0.70112407,94405.0,94404.0,8.52e-05]
[1736405323038,0.59682431,94405.0,94404.0,8.52e-05]
[1736405323251,0.50182431,94405.0,94404.0,0.0010852]
[1736405323452,0.49682431,94405.0,94404.0,8.52e-05]
[1736405323661,0.49582431,94405.0,94404.0,8.52e-05]
[1736405324249,0.70012407,94405.0,94404.0,8.52e-05]
[1736405324950,0.70512407,94405.0,94404.0,8.52e-05]
[1736405325389,0.8472599,94405.0,94404.0,8.52e-05]
[1736405325595,0.8492599,94405.0,94404.0,8.52e-05]
[1736405326092,0.8472599,94405.0,94404.0,8.52e-05]
[1736405326599,0.8492599,94405.0,94404.0,8.52e-05]
[1736405326706,0.023,94387.0,94386.0,8.52e-05]
[1736405326913,0.13374586,94387.0,94386.0,8.52e-05]
[1736405327970,0.1349681,94387.0,94386.0,8.52e-05]
[1736405328181,0.2849681,94387.0,94386.0,8.52e-05]
[1736405328503,0.28564016,94387.0,94386.0,8.52e-05]
[1736405328704,0.73933517,94387.0,94386.0,0.0010852]
[1736405328835,0.75009761,94387.0,94386.0,0.0010852]
[1736405329024,0.75009761,94387.0,94386.0,8.52e-05]
[1736405329372,0.75009761,94387.0,94386.0,0.0010852]
[1736405329560,0.75209761,94387.0,94386.0,8.52e-05]
[1736405329836,0.65479785,94387.0,94386.0,8.52e-05]
[1736405330347,0.211913,94378.0,94377.0,8.52e-05]
[1736405330549,0.33921276,94378.0,94377.0,8.52e-05]
[1736405330767,0.59563258,94378.0,94377.0,8.52e-05]
[1736405330903,0.70115459,94378.0,94377.0,8.52e-05]
[1736405331664,0.70215459,94378.0,94377.0,8.52e-05]
[1736405332703,0.70515459,94378.0,94377.0,8.52e-05]
[1736405337368,0.70393234,94378.0,94377.0,8.52e-05]
[1736405343537,0.49963258,94378.0,94377.0,8.52e-05]
[1736405348863,1.10383258,94378.0,94377.0,8.52e-05]
[1736405349284,0.461934,94369.0,94366.0,8.52e-05]
[1736405349494,0.58923376,94369.0,94366.0,8.52e-05]
[1736405349703,0.595525,94369.0,94366.0,8.52e-05]
[1736405350080,0.68749265,94369.0,94366.0,8.52e-05]
[1736405350463,0.68754269,94369.0,94366.0,8.52e-05]
[1736405351616,0.68822897,94369.0,94366.0,8.52e-05]
[1736405352208,0.70099131,94369.0,94366.0,8.52e-05]
[1736405352644,0.70699131,94369.0,94366.0,8.52e-05]
[1736405352858,0.72862171,94369.0,94366.0,8.52e-05]
[1736405353276,1.26664535,94369.0,94366.0,8.52e-05]
[1736405353624,0.384949,94362.0,94350.0,0.0803]
[1736405353890,0.59354852,94362.0,94350.0,0.0803]
[1736405354209,0.59983976,94362.0,94350.0,0.0803]
[1736405354413,0.60106201,94362.0,94350.0,0.0803]
[1736405354859,0.60206201,94362.0,94350.0,0.0803]
[1736405355298,0.60506201,94362.0,94350.0,0.0803]
[1736405355511,0.74715851,94362.0,94350.0,0.0803]
[1736405358280,0.023,94361.0,94350.0,0.0605105]
[1736405358453,0.211974,94351.0,94350.0,0.0605105]
[1736405358656,0.31627376,94351.0,94350.0,0.0605105]
[1736405358856,0.32251084,94351.0,94350.0,0.0605105]
[1736405359060,0.34551084,94351.0,94350.0,0.0605105]
[1736405359271,0.34551084,94351.0,94347.0,8.52e-05]
[1736405359272,0.211981,94348.0,94347.0,8.52e-05]
[1736405359447,0.211981,94348.0,94319.0,0.20176394]
[1736405359448,0.173,94343.0,94319.0,0.20176394]
[1736405359653,0.384999,94340.0,94323.0,8.53e-05]
[1736405359860,0.48929876,94340.0,94323.0,8.53e-05]
[1736405360048,0.49553229,94340.0,94323.0,8.53e-05]
[1736405360253,0.58627769,94340.0,94323.0,8.53e-05]
[1736405360656,0.58749994,94340.0,94323.0,8.53e-05]
[1736405360870,0.58749994,94340.0,94339.0,0.00058371]
[1736405361566,1.12745854,94340.0,94339.0,0.00058371]
[1736405362167,1.22945854,94340.0,94339.0,0.00058371]
[1736405362856,1.22823629,94340.0,94339.0,0.00058371]
[1736405363892,1.03749089,94340.0,94339.0,0.00058371]
[1736405364094,1.09221089,94340.0,94339.0,0.00058371]
[1736405364273,1.03749089,94340.0,94339.0,0.00058371]
[1736405364470,1.09221089,94340.0,94339.0,0.00058371]
[1736405365028,0.6478707,94340.0,94339.0,0.00058371]
[1736405365216,0.75217046,94340.0,94339.0,0.00058371]
[1736405365397,0.6478707,94340.0,94339.0,0.00058371]
[1736405365802,0.5931507,94340.0,94339.0,0.00058371]
[1736405366219,0.49853229,94340.0,94339.0,0.00058371]
[1736405366995,0.28653329,94340.0,94339.0,0.00058371]
[1736405367751,0.49853229,94340.0,94339.0,0.00058371]
[1736405368143,0.64051905,94340.0,94339.0,0.00058371]
[1736405370193,0.74481881,94340.0,94339.0,0.00058371]
[1736405370332,0.64051905,94340.0,94339.0,0.00058371]
[1736405370747,0.49853229,94340.0,94339.0,0.00058371]
[1736405373361,0.64060347,94340.0,94339.0,0.00058371]
[1736405374731,0.64060347,94340.0,94339.0,5.407e-05]
[1736405375704,0.49853229,94340.0,94339.0,5.407e-05]
[1736405375905,0.32553229,94340.0,94339.0,5.407e-05]
[1736405377224,0.32453229,94340.0,94339.0,5.407e-05]
[1736405377667,0.42306793,94340.0,94339.0,5.407e-05]
[1736405378511,0.42106793,94340.0,94339.0,5.407e-05]
[1736405378720,0.4148344,94340.0,94339.0,5.407e-05]
[1736405380059,0.50960635,94340.0,94339.0,5.407e-05]
[1736405380997,0.52621425,94340.0,94339.0,5.407e-05]
[1736405381461,0.42767861,94340.0,94339.0,5.407e-05]
[1736405382004,0.42967861,94340.0,94339.0,5.407e-05]
[1736405382231,0.42767861,94340.0,94339.0,5.407e-05]
[1736405382434,0.41107071,94340.0,94339.0,5.407e-05]
[1736405382561,0.41307071,94340.0,94339.0,5.407e-05]
[1736405382766,0.51737047,94340.0,94339.0,5.407e-05]
[1736405384409,0.42259852,94340.0,94339.0,5.407e-05]
[1736405384939,0.31829876,94340.0,94339.0,5.407e-05]
[1736405387020,0.34129876,94340.0,94339.0,5.407e-05]
[1736405387988,0.69132882,94340.0,94339.0,5.407e-05]
[1736405388649,0.70793739,94340.0,94339.0,5.407e-05]
[1736405389078,0.70693739,94340.0,94339.0,5.407e-05]
[1736405389288,0.81123715,94340.0,94339.0,5.407e-05]
[1736405389492,0.81423715,94340.0,94339.0,5.407e-05]
[1736405391733,1.03422107,94340.0,94339.0,5.407e-05]
[1736405393029,0.79762858,94340.0,94339.0,5.407e-05]
[1736405393173,0.69332882,94340.0,94339.0,5.407e-05]
[1736405395966,0.70993732,94340.0,94339.0,5.407e-05]
[1736405397322,0.69332882,94340.0,94339.0,5.407e-05]
[1736405400413,0.70993794,94340.0,94339.0,5.407e-05]
[1736405400647,0.79762858,94340.0,94339.0,5.407e-05]
[1736405401224,0.94762858,94340.0,94339.0,5.407e-05]
[1736405405705,1.26843183,94340.0,94339.0,5.407e-05]
[1736405407082,1.16413207,94340.0,94339.0,5.407e-05]
[1736405407286,1.18074069,94340.0,94339.0,5.407e-05]
[1736405407491,1.16413207,94340.0,94339.0,5.407e-05]
[1736405407966,0.84332882,94340.0,94339.0,0.08045407]
[1736405409320,0.84232882,94340.0,94339.0,0.08045407]
[1736405409636,0.94662858,94340.0,94339.0,0.08045407]
[1736405409892,0.94462858,94340.0,94339.0,0.08045407]
[1736405410157,0.94662858,94340.0,94339.0,0.08045407]
[1736405410369,0.94562858,94340.0,94339.0,0.08045407]
[1736405410573,0.96223687,94340.0,94339.0,0.08045407]
[1736405410780,0.94562858,94340.0,94339.0,0.08045407]
[1736405411304,0.94362858,94340.0,94339.0,5.407e-05]
[1736405411766,0.94562858,94340.0,94339.0,5.407e-05]
[1736405412455,0.94362858,94340.0,94339.0,5.407e-05]
[1736405412673,0.94462858,94340.0,94339.0,5.407e-05]
[1736405412850,0.94762858,94340.0,94339.0,5.407e-05]
[1736405414008,0.84332882,94340.0,94339.0,5.407e-05]
[1736405414640,0.69332882,94340.0,94339.0,0.07625407]
[1736405414857,0.7099371,94340.0,94339.0,0.07625407]
[1736405416783,0.9951574,94340.0,94339.0,0.07625407]
[1736405417850,0.7099371,94340.0,94339.0,0.07625407]
[1736405418968,0.7099371,94340.0,94339.0,0.12505407]
[1736405418969,0.56602906,94340.0,94339.0,0.12505407]
[1736405419563,0.56202906,94340.0,94339.0,0.12505407]
[1736405419950,0.56302906,94340.0,94339.0,0.12505407]
[1736405420177,0.76783043,94340.0,94339.0,5.407e-05]
[1736405421248,0.76683043,94340.0,94339.0,5.407e-05]
[1736405421465,1.20203502,94340.0,94339.0,5.407e-05]
[1736405421812,1.20403502,94340.0,94339.0,5.407e-05]
[1736405422184,1.20503502,94340.0,94339.0,5.407e-05]
[1736405422569,0.91883043,94340.0,94339.0,5.407e-05]
[1736405422953,0.91783043,94340.0,94339.0,5.407e-05]
[1736405423142,0.92083043,94340.0,94339.0,5.407e-05]
[1736405424193,0.91983043,94340.0,94339.0,5.407e-05]
[1736405424638,0.92083043,94340.0,94339.0,5.407e-05]
[1736405425149,0.83932882,94340.0,94339.0,5.407e-05]
[1736405425302,0.84232882,94340.0,94339.0,5.407e-05]
[1736405425524,0.84232882,94340.0,94339.0,0.07795407]
[1736405425938,0.84132882,94340.0,94339.0,0.07795407]
[1736405426154,0.84032882,94340.0,94339.0,0.07795407]
[1736405426360,0.71302906,94340.0,94339.0,0.07795407]
[1736405426580,0.35403006,94340.0,94339.0,0.07795407]
[1736405426981,0.35403006,94340.0,94339.0,0.12735407]
[1736405428026,0.35003006,94340.0,94339.0,0.12735407]
[1736405428441,0.35003006,94340.0,94339.0,0.16129008]
[1736405428442,0.35303006,94340.0,94339.0,0.16129008]
[1736405428684,0.35303006,94340.0,94339.0,0.12735407]
[1736405428861,0.35203006,94340.0,94339.0,0.12735407]
[1736405429277,0.35303006,94340.0,94339.0,0.12735407]
[1736405429680,0.35003006,94340.0,94339.0,0.12735407]
[1736405429882,0.35003006,94340.0,94339.0,0.23165383]
[1736405430108,0.09505244,94349.0,94348.0,0.211981]
[1736405430339,0.09505244,94349.0,94348.0,0.342481]
[1736405431161,0.09505244,94359.0,94353.0,0.211967]
[1736405431355,0.09505244,94359.0,94354.0,0.0822]
[1736405432108,0.09505244,94362.0,94354.0,0.0822]
[1736405432715,0.09505244,94362.0,94354.0,0.0842]
[1736405433155,0.09505244,94362.0,94354.0,0.0822]
[1736405433556,0.234965,94355.0,94354.0,0.001]
[1736405433764,0.33926476,94355.0,94354.0,0.001]
[1736405433967,0.211999,94340.0,94339.0,5.407e-05]
[1736405434374,0.33929876,94340.0,94339.0,5.407e-05]
[1736405434823,0.36047734,94340.0,94339.0,5.407e-05]
[1736405434997,0.43892307,94340.0,94339.0,5.407e-05]
[1736405435372,0.58892307,94340.0,94339.0,5.407e-05]
[1736405435782,0.58992307,94340.0,94339.0,5.407e-05]
[1736405436130,0.60069528,94340.0,94339.0,5.407e-05]
[1736405436332,0.95104977,94340.0,94339.0,5.407e-05]
[1736405438280,0.95304977,94340.0,94339.0,5.407e-05]
[1736405438532,0.96004977,94340.0,94339.0,5.407e-05]
[1736405439754,0.97665913,94340.0,94339.0,5.407e-05]
[1736405440319,0.96004977,94340.0,94339.0,5.407e-05]
[1736405440747,0.88160404,94340.0,94339.0,5.407e-05]
[1736405441180,0.64506527,94340.0,94339.0,0.07635407]
[1736405442137,0.64206527,94340.0,94339.0,0.07635407]
[1736405442347,0.211985,94346.0,94339.0,0.07635407]
[1736405442348,0.09492222,94343.0,94339.0,0.07635407]
[1736405442721,0.001,94340.0,94339.0,0.07635407]
[1736405443580,0.30690722,94346.0,94339.0,0.07635407]
[1736405443808,0.62319298,94346.0,94339.0,0.07635407]
[1736405444561,0.211996,94342.0,94339.0,0.07635407]
[1736405445988,0.09492222,94347.0,94339.0,0.07635407]
[1736405446229,0.001,94342.0,94339.0,0.07635407]
[1736405446881,0.001,94342.0,94340.0,0.211999]
[1736405447853,0.18984444,94351.0,94340.0,0.211999]
[1736405447854,0.09492222,94351.0,94340.0,0.211999]
[1736405448260,0.001,94347.0,94340.0,0.211999]
[1736405448643,0.001,94347.0,94341.0,0.211996]
[1736405448982,0.09492222,94355.0,94341.0,0.211996]
[1736405449365,0.002,94351.0,94341.0,0.211996]
[1736405449996,0.002,94351.0,94345.0,0.211986]
[1736405450196,0.002,94351.0,94347.0,0.211983]
[1736405450402,0.002,94351.0,94348.0,0.0806]
[1736405450611,0.09492222,94356.0,94348.0,0.0806]
[1736405451843,0.01660566,94355.0,94348.0,0.0806]
[1736405452444,0.09492222,94359.0,94348.0,0.0806]
[1736405452859,0.001,94356.0,94348.0,0.0806]
[1736405453215,0.211958,94358.0,94348.0,0.0806]
[1736405453418,0.12729976,94357.0,94339.0,0.07685407]
[1736405453653,0.211991,94344.0,94339.0,5.407e-05]
[1736405453864,0.423983,94344.0,94339.0,5.407e-05]
[1736405454450,0.52828276,94344.0,94339.0,5.407e-05]
[1736405454881,0.423988,94342.0,94339.0,5.407e-05]
[1736405455083,0.211999,94340.0,94339.0,5.407e-05]
[1736405455650,0.2286079,94340.0,94339.0,5.407e-05]
[1736405455850,0.37099123,94340.0,94339.0,5.407e-05]
[1736405456308,0.49829099,94340.0,94339.0,5.407e-05]
[1736405456463,0.50029099,94340.0,94339.0,5.407e-05]
[1736405456666,0.60459075,94340.0,94339.0,5.407e-05]
[1736405457251,1.00236733,94340.0,94339.0,5.407e-05]
[1736405457535,1.02188841,94340.0,94339.0,5.407e-05]
[1736405458081,1.02288841,94340.0,94339.0,5.407e-05]
[1736405458492,1.02188841,94340.0,94339.0,5.407e-05]
[1736405458691,1.02388841,94340.0,94339.0,5.407e-05]
[1736405458900,1.02488841,94340.0,94339.0,5.407e-05]
[1736405459098,1.17488841,94340.0,94339.0,5.407e-05]
[1736405461258,0.98504397,94340.0,94339.0,5.407e-05]
[1736405462218,0.85774421,94340.0,94339.0,5.407e-05]
[1736405462654,0.35331547,94340.0,94339.0,5.407e-05]
[1736405462905,0.35331547,94340.0,94339.0,0.07535407]
[1736405463806,0.003,94340.0,94339.0,0.07535407]
[1736405463981,0.003,94340.0,94339.0,0.07641398]
[1736405464155,0.003,94340.0,94339.0,0.13104688]
[1736405464358,0.003,94340.0,94339.0,0.07535407]
[1736405464566,0.002,94340.0,94339.0,0.07535407]
[1736405465247,0.09489561,94356.0,94340.0,0.210999]
[1736405465428,0.09489561,94356.0,94349.0,0.211977]
[1736405466467,0.09489561,94364.0,94354.0,0.211967]
[1736405466668,0.09489561,94364.0,94356.0,0.211963]
[1736405467084,0.09489561,94364.0,94355.0,0.0793]
[1736405467489,0.21194,94367.0,94355.0,0.0793]
[1736405468263,0.21194,94367.0,94356.0,0.211963]
[1736405468469,0.29703003,94367.0,94355.0,0.0793]
[1736405468738,0.08609003,94367.0,94355.0,0.0793]
[1736405469005,0.002,94364.0,94355.0,0.0793]
[1736405469322,0.211942,94365.0,94355.0,0.0793]
[1736405470303,0.001,94364.0,94355.0,0.0793]
[1736405470442,0.04095314,94363.0,94355.0,0.0793]
[1736405471074,0.211939,94367.0,94355.0,0.291265]
[1736405471281,0.001,94367.0,94361.0,0.21195]
[1736405471712,0.09489561,94369.0,94361.0,0.21195]
[1736405471924,0.01660301,94367.0,94361.0,0.21195]
[1736405472125,0.001,94365.0,94361.0,0.21195]
[1736405472347,0.01660301,94367.0,94361.0,0.423901]
[1736405473101,0.09489561,94369.0,94356.0,0.0452]
[1736405473423,0.09489561,94369.0,94366.0,0.211939]
[1736405473653,0.2120846,94378.0,94366.0,0.211939]
[1736405473654,0.09489561,94375.0,94366.0,0.211939]
[1736405473835,0.211922,94374.0,94363.0,0.211945]
[1736405474036,0.08510369,94373.0,94356.0,0.0452]
[1736405474270,0.08510369,94373.0,94327.0,0.77773228]
[1736405474271,0.12729976,94372.0,94347.0,0.0808]
[1736405474436,0.211973,94352.0,94341.0,0.211995]
[1736405475041,0.211973,94352.0,94340.0,0.0808]
[1736405475408,0.211973,94352.0,94340.0,0.292797]
[1736405475638,0.02330812,94351.0,94340.0,0.292797]
[1736405476583,0.211976,94350.0,94340.0,0.292797]
[1736405476794,0.211976,94350.0,94340.0,0.293797]
[1736405478048,0.02330812,94351.0,94340.0,0.293797]
[1736405478247,0.02330812,94351.0,94340.0,0.292797]
[1736405478482,0.211967,94355.0,94340.0,0.292797]
[1736405478483,0.09489561,94355.0,94340.0,0.0808]
[1736405478714,0.09489561,94355.0,94348.0,0.211979]
[1736405478900,0.09489561,94355.0,94348.0,0.423959]
[1736405479085,0.09489561,94355.0,94348.0,0.211979]
[1736405479679,0.02110816,94357.0,94348.0,0.211979]
[1736405479880,0.02110816,94357.0,94348.0,0.423959]
[1736405480710,0.01660449,94355.0,94348.0,0.423959]
[1736405481795,0.02506647,94354.0,94344.0,0.211988]
[1736405482008,0.02506647,94354.0,94340.0,0.292797]
[1736405482212,0.211962,94357.0,94344.0,0.211988]
[1736405482424,0.01660568,94351.0,94344.0,0.211988]
[1736405482834,0.01660568,94351.0,94348.0,0.21398]
[1736405483163,0.01660568,94351.0,94348.0,0.21198]
[1736405483575,0.01660568,94351.0,94342.0,0.211994]
[1736405484007,0.02295687,94351.0,94342.0,0.211994]
[1736405485037,0.02295687,94351.0,94341.0,0.211996]
[1736405485246,0.02295687,94351.0,94348.0,0.002]
[1736405485417,0.01660629,94349.0,94348.0,0.002]
[1736405485650,0.01660629,94349.0,94340.0,0.0808]
[1736405485802,0.06295621,94349.0,94340.0,0.0808]
[1736405486000,0.06295621,94349.0,94342.0,0.002]
[1736405486433,0.06295621,94349.0,94340.0,0.0808]
[1736405486834,0.06295621,94349.0,94340.0,0.0818]
[1736405487851,0.06295621,94349.0,94341.0,0.211996]
[1736405488059,0.01064939,94351.0,94340.0,0.0808]
[1736405488276,0.09489561,94353.0,94340.0,0.08185986]
[1736405488478,0.09489561,94353.0,94340.0,0.08285986]
[1736405488677,0.09489561,94353.0,94340.0,0.11727265]
[1736405488893,0.211956,94359.0,94346.0,0.211985]
[1736405489468,0.09489561,94360.0,94350.0,0.423951]
[1736405490182,0.004,94359.0,94350.0,0.423951]
[1736405490382,0.001,94359.0,94350.0,0.423951]
[1736405490884,0.001,94359.0,94350.0,0.211975]
[1736405491088,0.35428742,94365.0,94350.0,0.211975]
[1736405491089,0.211949,94362.0,94350.0,0.211975]
[1736405491345,0.01660427,94357.0,94350.0,0.211975]
[1736405492075,0.01660427,94357.0,94346.0,0.211983]
[1736405492544,0.01660427,94357.0,94341.0,0.20176394]
[1736405492751,0.211974,94352.0,94341.0,0.20176394]
[1736405493164,0.211974,94352.0,94350.0,0.002]
[1736405493760,0.211974,94352.0,94341.0,0.20176394]
[1736405494029,0.211967,94354.0,94342.0,0.211994]
[1736405494321,0.211967,94354.0,94342.0,0.287675]
[1736405494533,0.211967,94354.0,94341.0,0.20276394]
[1736405495145,0.211967,94354.0,94342.0,0.211994]
[1736405495760,0.211967,94354.0,94350.0,0.001]
[1736405496172,0.211967,94354.0,94342.0,0.211994]
[1736405496471,0.211967,94354.0,94342.0,0.26839861]
[1736405496870,0.211962,94357.0,94342.0,0.47939261]
[1736405497074,0.36474083,94364.0,94352.0,0.21197]
[1736405497279,0.35429042,94364.0,94352.0,0.21197]
[1736405498480,0.56623742,94364.0,94350.0,0.001]
[1736405498691,0.423894,94364.0,94349.0,0.211978]
[1736405498939,0.001,94357.0,94349.0,0.211978]
[1736405499525,0.211954,94360.0,94349.0,0.211978]
[1736405500571,0.211954,94360.0,94349.0,0.212978]
[1736405501770,0.211954,94360.0,94349.0,0.211978]
[1736405502289,0.211954,94360.0,94349.0,0.212978]
[1736405504109,0.211954,94360.0,94349.0,0.001]
[1736405504556,0.211964,94356.0,94349.0,0.001]
[1736405505513,0.211964,94356.0,94344.0,0.211988]
[1736405505741,0.211964,94356.0,94349.0,0.001]
[1736405505901,0.211972,94352.0,94349.0,0.001]
[1736405506105,0.423944,94352.0,94349.0,0.001]
[1736405506319,0.14377799,94356.0,94341.0,0.20176394]
[1736405506514,0.0774,94356.0,94341.0,0.20176394]
[1736405506746,0.211981,94348.0,94341.0,0.20176394]
[1736405507575,0.211981,94348.0,94337.0,0.261203]
[1736405507987,0.30701749,94348.0,94337.0,0.261203]
[1736405508515,0.01660664,94346.0,94337.0,0.261203]
[1736405509292,0.09503649,94348.0,94337.0,0.261203]
[1736405509505,0.09503649,94348.0,94339.0,0.00105407]
[1736405509971,0.0207423,94343.0,94339.0,0.00105407]
[1736405510396,0.0207423,94343.0,94339.0,5.407e-05]
[1736405510862,0.09503649,94346.0,94340.0,0.211999]
[1736405511093,0.09503649,94346.0,94340.0,0.26712461]
[1736405511297,0.09503649,94346.0,94339.0,5.407e-05]
[1736405511759,0.09503649,94346.0,94339.0,0.00205407]
[1736405512205,0.09503649,94349.0,94339.0,0.00205407]
[1736405512412,0.001,94343.0,94339.0,5.407e-05]
[1736405512655,0.01660662,94345.0,94339.0,0.00105407]
[1736405513260,0.01660662,94345.0,94339.0,5.407e-05]
[1736405513638,0.01660662,94345.0,94340.0,0.211999]
[1736405515412,0.09503649,94347.0,94340.0,0.211999]
[1736405516095,0.01044902,94349.0,94340.0,0.211999]
[1736405516322,0.09503649,94350.0,94342.0,0.211994]
[1736405518694,0.09503649,94352.0,94342.0,0.211994]
[1736405519325,0.09503649,94352.0,94342.0,0.212994]
[1736405519620,0.211974,94351.0,94342.0,0.001]
[1736405519837,0.211974,94351.0,94340.0,0.211999]
[1736405520185,0.30701049,94351.0,94340.0,0.211999]
[1736405520391,0.30701049,94351.0,94339.0,5.407e-05]
[1736405520392,0.211992,94344.0,94339.0,5.407e-05]
[1736405520787,0.423984,94344.0,94339.0,5.407e-05]
[1736405520995,0.52828376,94344.0,94339.0,5.407e-05]
[1736405521267,0.211996,94341.0,94339.0,5.407e-05]
[1736405521838,0.211996,94341.0,94340.0,0.001]
[1736405522240,0.30754189,94341.0,94340.0,0.001]
[1736405522438,0.30754189,94341.0,94339.0,5.407e-05]
[1736405522638,0.30754189,94341.0,94339.0,0.00105407]
[1736405523409,0.30754189,94341.0,94339.0,5.407e-05]
[1736405523720,0.32838489,94341.0,94339.0,5.407e-05]
[1736405524633,0.54193266,94340.0,94339.0,5.407e-05]
[1736405525870,0.35149373,94340.0,94339.0,5.407e-05]
[1736405526199,0.35149373,94340.0,94339.0,0.00105407]
[1736405527917,0.43405577,94341.0,94339.0,0.00105407]
[1736405528362,0.10429976,94340.0,94339.0,0.00105407]
[1736405528694,0.20689976,94340.0,94339.0,0.00105407]
[1736405528869,0.20689976,94340.0,94339.0,5.407e-05]
[1736405529101,0.34969449,94340.0,94339.0,5.407e-05]
[1736405530553,0.55818867,94340.0,94339.0,5.407e-05]
[1736405531254,0.55818867,94340.0,94339.0,0.00105407]
[1736405532945,0.79597317,94340.0,94339.0,0.00105407]
[1736405533957,0.55818867,94340.0,94339.0,0.00105407]
[1736405535204,0.55793683,94340.0,94339.0,0.00105407]
[1736405536162,0.74810148,94340.0,94339.0,0.00105407]
[1736405537591,0.66850148,94340.0,94339.0,0.00105407]
[1736405539556,0.47833683,94340.0,94339.0,0.00105407]
[1736405540724,0.66850148,94340.0,94339.0,0.00105407]
[1736405544090,0.47833683,94340.0,94339.0,0.00105407]
[1736405545585,0.12704792,94340.0,94339.0,0.00105407]
[1736405547672,0.47774942,94340.0,94339.0,0.00105407]
[1736405550592,0.66791407,94340.0,94339.0,0.00105407]
[1736405550824,0.77221383,94340.0,94339.0,0.00105407]
[1736405552674,0.58204918,94340.0,94339.0,0.00105407]
[1736405553280,0.73204918,94340.0,94339.0,0.00105407]
[1736405554288,0.73204918,94340.0,94339.0,5.407e-05]
[1736405555051,1.01675996,94340.0,94339.0,5.407e-05]
[1736405555469,1.01775996,94340.0,94339.0,5.407e-05]
[1736405555720,1.01775996,94340.0,94323.0,8.53e-05]
[1736405555721,0.15,94324.0,94323.0,8.53e-05]
[1736405555941,0.362066,94310.0,94302.0,8.52e-05]
[1736405556179,0.173,94309.0,94302.0,8.52e-05]
[1736405556459,0.40609976,94309.0,94302.0,8.52e-05]
[1736405556580,0.40609976,94309.0,94288.0,7e-05]
[1736405556581,0.212113,94289.0,94288.0,7e-05]
[1736405556783,0.31641276,94289.0,94288.0,7e-05]
[1736405557287,0.54946277,94289.0,94288.0,7e-05]
[1736405557483,0.62714277,94289.0,94288.0,7e-05]
[1736405557696,0.72714277,94289.0,94288.0,7e-05]
[1736405557904,0.83144253,94289.0,94288.0,0.00207]
[1736405558927,1.18214403,94289.0,94288.0,0.00207]
[1736405559331,0.424295,94274.0,94262.0,0.0262853]
[1736405559478,0.10429976,94274.0,94262.0,0.0262853]
[1736405559694,0.212156,94270.0,94262.0,0.0262853]
[1736405559945,0.212161,94268.0,94262.0,0.0262853]
[1736405561171,0.212161,94268.0,94262.0,0.0272853]
[1736405561795,0.212161,94268.0,94262.0,0.001]
[1736405562827,0.03164558,94269.0,94259.0,0.0762]
[1736405562963,0.01066641,94274.0,94262.0,0.001]
[1736405563167,0.212139,94278.0,94262.0,0.001]
[1736405563368,0.2600339,94278.0,94262.0,0.001]
[1736405563568,0.2600339,94278.0,94261.0,0.00106075]
[1736405563769,0.2600339,94278.0,94262.0,0.001]
[1736405564180,0.212143,94276.0,94263.0,0.212172]
[1736405564549,0.212143,94276.0,94259.0,0.0762]
[1736405564729,0.26692826,94276.0,94260.0,0.21323975]
[1736405565035,0.212143,94276.0,94260.0,0.212179]
[1736405565252,0.212143,94276.0,94262.0,0.212174]
[1736405565448,0.002,94276.0,94266.0,0.212163]
[1736405565686,0.212129,94282.0,94266.0,0.212163]
[1736405565687,0.212129,94282.0,94267.0,0.0793607]